lending/lending_fUSD_20240219
["ID","MTS","AMOUNT","RATE_DAILY","PERIOD"]
[314506077,1708378251220,-500.0,0.00046849,30]
[314506078,1708378251230,-563.85731308,0.00046849,30]
[314506079,1708378251240,-500.0,0.00046849,30]
[314506080,1708378251250,-500.0,0.00046849,30]
[314506081,1708378251260,-500.0,0.00046849,30]
[314506082,1708378251270,-566.20772628,0.00046849,30]
[314506083,1708378251279,-500.0,0.00046849,30]
[314506084,1708378251289,-500.0,0.00046849,30]
[314506085,1708378251299,-500.0,0.00046849,30]
[314506086,1708378251308,-500.0,0.00046849,30]
[314506087,1708378251318,-513.7523414,0.00046849,30]
[314506088,1708378251327,-500.0,0.00046849,30]
[314506089,1708378251336,-500.0,0.00046849,30]
[314506090,1708378251346,-500.0,0.00046849,30]
[314506091,1708378251355,-500.0,0.00046849,30]
[314506092,1708378251365,-500.0,0.00046849,30]
[314506093,1708378251375,-500.0,0.00046849,30]
[314506094,1708378251386,-500.0,0.00046849,30]
[314506095,1708378251395,-500.0,0.00046849,30]
[314506096,1708378251405,-500.0,0.00046849,30]
[314506097,1708378251414,-237.778854,0.00046849,14]
[314506098,1708378251424,-500.0,0.00046849,30]
[314506099,1708378251434,-500.0,0.00046849,30]
[314506100,1708378251444,-500.0,0.00046849,30]
[314506101,1708378251453,-500.0,0.00046849,30]
[314506102,1708378251463,-500.0,0.00046849,30]
[314506103,1708378251472,-500.0,0.00046849,30]
[314506104,1708378251482,-500.0,0.00046849,30]
[314506105,1708378251491,-500.0,0.00046849,30]
[314506106,1708378251500,-500.0,0.00046849,30]
[314506107,1708378251510,-500.0,0.00046849,30]
[314506108,1708378251519,-500.0,0.00046849,30]
[314506109,1708378251529,-500.0,0.00046849,30]
[314506110,1708378251538,-500.0,0.00046849,30]
[314506111,1708378251548,-551.99,0.00046849,30]
[314506112,1708378251557,-500.0,0.00046849,30]
[314506113,1708378251566,-500.0,0.00046849,30]
[314506114,1708378251575,-500.0,0.00046849,30]
[314506115,1708378251585,-500.0,0.00046849,30]
[314506116,1708378251595,-500.0,0.00046849,30]
[314506117,1708378251605,-500.0,0.00046849,30]
[314506118,1708378251614,-500.0,0.00046849,30]
[314506119,1708378251623,-500.0,0.00046849,30]
[314506120,1708378251633,-500.0,0.00046849,30]
[314506121,1708378251643,-500.0,0.00046849,30]
[314506122,1708378251652,-500.0,0.00046849,30]
[314506123,1708378251662,-501.96,0.00046849,30]
[314506124,1708378251671,-500.0,0.00046849,30]
[314506125,1708378251681,-500.0,0.00046849,30]
[314506126,1708378251690,-500.0,0.00046849,30]
[314506127,1708378251700,-1055.55,0.00046849,30]
[314506128,1708378251709,-500.0,0.00046849,30]
[314506129,1708378251719,-500.0,0.00046849,30]
[314506130,1708378251728,-500.0,0.00046849,30]
[314506131,1708378251738,-1053.87,0.00046849,30]
[314506132,1708378251747,-500.0,0.00046849,30]
[314506133,1708378251756,-885.63,0.00046849,30]
[314506134,1708378251769,-500.0,0.00046849,30]
[314506135,1708378251778,-500.0,0.00046849,30]
[314506136,1708378251788,-500.0,0.00046849,30]
[314506137,1708378251797,-500.0,0.00046849,30]
[314506138,1708378251806,-500.0,0.00046849,30]
[314506139,1708378251815,-151.0,0.00046849,14]
[314506140,1708378251825,-500.0,0.00046849,30]
[314506141,1708378251834,-1946.34,0.00046849,30]
[314506142,1708378251845,-500.0,0.00046849,30]
[314506143,1708378251854,-1181.82,0.00046849,30]
[314506144,1708378251863,-500.0,0.00046849,30]
[314506145,1708378251872,-500.0,0.00046849,30]
[314506146,1708378251882,-1706.97,0.00046849,30]
[314506147,1708378251891,-1056.83,0.00046849,30]
[314506148,1708378251901,-500.0,0.00046849,30]
[314506149,1708378251911,-500.0,0.00046849,30]
[314506150,1708378251921,-8268.96,0.00046849,30]
[314506151,1708378251931,-500.0,0.00046849,30]
[314506152,1708378252200,-500.0,0.00046849,2]
[314506153,1708378252210,-500.0,0.00046849,30]
[314506154,1708378252220,-559.32696817,0.00046849,30]
[314506155,1708378252229,-500.0,0.00046849,30]
[314506156,1708378252240,-500.0,0.00046849,30]
[314506157,1708378252249,-550.51,0.00046849,30]
[314506158,1708378252259,-500.0,0.00046849,30]
[314506159,1708378252270,-500.0,0.00046849,30]
[314506160,1708378252280,-500.0,0.00046849,30]
[314506161,1708378252290,-500.0,0.00046849,30]
[314506162,1708378252300,-1596.86,0.00046849,30]
[314506163,1708378252310,-1325.65,0.00046849,30]
[314506164,1708378252320,-713.28,0.00046849,30]
[314506165,1708378252330,-500.0,0.00046849,30]
[314506166,1708378252339,-695.11,0.00046849,30]
[314506167,1708378252350,-500.0,0.00046849,30]
[314506168,1708378252359,-500.0,0.00046849,30]
[314506169,1708378252369,-500.0,0.00046849,30]
[314506170,1708378252378,-175.0,0.00046849,30]
[314506171,1708378252388,-2195.2,0.00046849,30]
[314506172,1708378252397,-1556.15,0.00046849,30]
[314506173,1708378252407,-500.0,0.00046849,30]
[314506174,1708378252416,-167.06917415,0.00046849,30]
[314506175,1708378252425,-947.74,0.00046849,30]
[314506176,1708378252435,-500.0,0.00046849,30]
[314506177,1708378252444,-1791.71,0.00046849,30]
[314506178,1708378252454,-500.0,0.00046849,30]
[314506179,1708378252464,-3566.95,0.00046849,30]
[314506180,1708378252473,-500.0,0.00046849,30]
[314506181,1708378252482,-841.6,0.00046849,30]
[314506182,1708378252492,-1316.43,0.00046849,30]
[314506183,1708378252502,-500.0,0.00046849,30]
[314506184,1708378252512,-500.0,0.00046849,30]
[314506185,1708378252521,-1280.74,0.00046849,30]
[314506186,1708378252532,-18426.89,0.00046849,30]
[314506187,1708378252541,-1010.76,0.00046849,30]
[314506188,1708378252550,-500.0,0.00046849,30]
[314506189,1708378252560,-885.16,0.00046849,30]
[314506190,1708378252569,-522.03440367,0.00046849,30]
[314506191,1708378252578,-500.0,0.00046849,30]
[314506192,1708378252587,-500.0,0.00046849,30]
[314506193,1708378252598,-1538.6,0.00046849,30]
[314506194,1708378252608,-747.64,0.00046849,30]
[314506195,1708378252617,-1186.66,0.00046849,30]
[314506196,1708378252627,-946.11,0.00046849,30]
[314506197,1708378252636,-1095.22,0.00046849,30]
[314506198,1708378252646,-500.0,0.00046849,30]
[314506199,1708378252656,-500.0,0.00046849,30]
[314506200,1708378252665,-1000.0,0.00046849,7]
[314506201,1708378252674,-500.0,0.00046849,30]
[314506202,1708378252684,-500.0,0.00046849,30]
[314506203,1708378252694,-536.42,0.00046849,30]
[314506204,1708378252703,-500.0,0.00046849,30]
[314506205,1708378252712,-500.0,0.00046849,30]
[314506206,1708378252723,-500.0,0.00046849,30]
[314506207,1708378252732,-1136.16,0.00046849,30]
[314506208,1708378252742,-6609.47,0.00046849,30]
[314506209,1708378252752,-1468.29,0.00046849,30]
[314506210,1708378252764,-500.0,0.00046849,30]
[314506211,1708378252773,-500.0,0.00046849,30]
[314506212,1708378252782,-500.0,0.00046849,30]
[314506213,1708378252792,-668.15,0.00046849,30]
[314506214,1708378252802,-929.27,0.00046849,30]
[314506215,1708378252812,-500.0,0.00046849,30]
[314506216,1708378252821,-500.0,0.00046849,30]
[314506217,1708378252831,-634.08,0.00046849,30]
[314506218,1708378252841,-500.0,0.00046849,30]
[314506219,1708378252851,-462.63295046,0.00046849,30]
[314506220,1708378252861,-896.45,0.00046849,30]
[314506221,1708378252870,-500.0,0.00046849,30]
[314506222,1708378252880,-500.0,0.00046849,30]
[314506223,1708378252889,-1328.4,0.00046849,30]
[314506224,1708378252899,-781.17,0.00046849,30]
[314506225,1708378252908,-500.0,0.00046849,30]
[314506226,1708378252918,-500.0,0.00046849,30]
[314506227,1708378252928,-500.0,0.00046849,30]
[314506228,1708378252938,-808.14,0.00046849,30]
[314506229,1708378252947,-2516.47,0.00046849,30]
[314506230,1708378252957,-500.0,0.00046849,30]
[314506231,1708378252966,-652.17,0.00046849,30]
[314506232,1708378252976,-567.06,0.00046849,30]
[314506233,1708378252986,-721.84,0.00046849,30]
[314506234,1708378252997,-500.0,0.00046849,30]
[314506235,1708378253007,-5232.16,0.00046849,30]
[314506236,1708378253017,-500.0,0.00046849,30]
[314506237,1708378253027,-500.0,0.00046849,30]
[314506238,1708378253037,-151.0,0.00046849,14]
[314506239,1708378253047,-500.0,0.00046849,30]
[314506240,1708378253057,-827.49,0.00046849,30]
[314506241,1708378253066,-1000.0,0.00046849,33]
[314506242,1708378253076,-509.98,0.00046849,30]
[314506243,1708378253086,-500.0,0.00046849,30]
[314506244,1708378253097,-676.76,0.00046849,30]
[314506245,1708378253106,-500.0,0.00046849,30]
[314506246,1708378253116,-500.0,0.00046849,30]
[314506247,1708378253126,-500.0,0.00046849,30]
[314506248,1708378253135,-627.95,0.00046849,30]
[314506249,1708378253145,-500.0,0.00046849,30]
[314506250,1708378253155,-500.0,0.00046849,30]
[314506251,1708378253165,-931.02,0.00046849,30]
[314506252,1708378253174,-500.0,0.00046849,30]
[314506253,1708378253183,-500.0,0.00046849,30]
[314506254,1708378253193,-2919.49,0.00046849,30]
[314506255,1708378253202,-770.48,0.00046849,30]
[314506256,1708378253212,-500.0,0.00046849,30]
[314506257,1708378253221,-1508.0,0.00046849,30]
[314506258,1708378253231,-667.93,0.00046849,30]
[314506259,1708378253241,-500.0,0.00046849,30]
[314506260,1708378253250,-2082.95,0.00046849,30]
[314506261,1708378253260,-879.08,0.00046849,30]
[314506262,1708378253269,-2826.01,0.00046849,30]
[314506263,1708378253279,-500.0,0.00046849,30]
[314506264,1708378253288,-500.0,0.00046849,30]
[314506265,1708378253298,-682.03,0.00046849,30]
[314506266,1708378253308,-754.56,0.00046849,30]
[314506267,1708378253318,-500.0,0.00046849,30]
[314506268,1708378253328,-500.0,0.00046849,30]
[314506269,1708378253338,-935.53,0.00046849,30]
[314506270,1708378253348,-500.0,0.00046849,30]
[314506271,1708378253357,-500.0,0.00046849,30]
[314506272,1708378253367,-681.27,0.00046849,30]
[314506273,1708378253376,-621.53,0.00046849,30]
[314506274,1708378253385,-567.30454543,0.00046849,30]
[314506275,1708378253395,-500.0,0.00046849,30]
[314506276,1708378253404,-500.0,0.00046849,30]
[314506277,1708378253415,-500.0,0.00046849,30]
[314506278,1708378253425,-2727.92,0.00046849,30]
[314506279,1708378253434,-3736.72,0.00046849,30]
[314506280,1708378253443,-2391.1,0.00046849,30]
[314506281,1708378253452,-500.0,0.00046849,30]
[314506282,1708378253462,-911.34,0.00046849,30]
[314506283,1708378253471,-500.0,0.00046849,30]
[314506284,1708378253481,-1344.48,0.00046849,30]
[314506285,1708378253490,-621.49,0.00046849,30]
[314506286,1708378253499,-376.85,0.00046849,30]
[314506287,1708378253508,-1570.11,0.00046849,30]
[314506288,1708378253518,-500.0,0.00046849,30]
[314506289,1708378253527,-500.0,0.00046849,30]
[314506290,1708378253536,-548.97128253,0.00046849,30]
[314506291,1708378253545,-1652.53,0.00046849,30]
[314506292,1708378253555,-3859.16,0.00046849,30]
[314506293,1708378253567,-500.0,0.00046849,30]
[314506294,1708378253576,-663.1,0.00046849,30]
[314506295,1708378253585,-985.06,0.00046849,30]
[314506296,1708378253596,-500.0,0.00046849,30]
[314506297,1708378253605,-852.41,0.00046849,30]
[314506298,1708378253615,-500.0,0.00046849,30]
[314506299,1708378253624,-996.52,0.00046849,30]
[314506300,1708378253633,-518.72696223,0.00046849,30]
[314506301,1708378253642,-500.0,0.00046849,30]
[314506302,1708378253651,-352.78,0.00046849,30]
[314506303,1708378253660,-1485.86,0.00046849,30]
[314506304,1708378253669,-798.22,0.00046849,30]
[314506305,1708378253678,-1191.69,0.00046849,30]
[314506306,1708378253688,-500.0,0.00046849,30]
[314506307,1708378253697,-568.62,0.00046849,30]
[314506308,1708378253706,-197.64290484,0.00046849,30]
[314506309,1708378253715,-500.0,0.00046849,30]
[314506310,1708378253725,-5758.48,0.00046849,30]
[314506311,1708378253735,-805.12,0.00046849,30]
[314506312,1708378253744,-500.0,0.00046849,30]
[314506313,1708378253756,-736.93,0.00046849,30]
[314506314,1708378253772,-500.0,0.00046849,30]
[314506315,1708378253781,-557.43,0.00046849,30]
[314506316,1708378253790,-960.56,0.00046849,30]
[314506317,1708378253801,-221.84,0.00046849,30]
[314506318,1708378253810,-767.8,0.00046849,30]
[314506319,1708378253820,-500.0,0.00046849,30]
[314506320,1708378253830,-694.18,0.00046849,30]
[314506321,1708378253840,-615.5,0.00046849,30]
[314506322,1708378253850,-948.13,0.00046849,30]
[314506323,1708378253859,-500.0,0.00046849,30]
[314506324,1708378253868,-500.0,0.00046849,30]
[314506325,1708378253877,-500.0,0.00046849,30]
[314506326,1708378253887,-606.15,0.00046849,30]
[314506327,1708378253896,-500.0,0.00046849,30]
[314506328,1708378253905,-1500.42,0.00046849,30]
[314506329,1708378253915,-2154.3,0.00046849,30]
[314506330,1708378253924,-500.0,0.00046849,30]
[314506331,1708378253933,-500.0,0.00046849,30]
[314506332,1708378253943,-500.0,0.00046849,30]
[314506333,1708378253952,-500.0,0.00046849,30]
[314506334,1708378253962,-1136.93,0.00046849,30]
[314506335,1708378253971,-500.0,0.00046849,30]
[314506336,1708378253980,-500.0,0.00046849,30]
[314506337,1708378253989,-618.37,0.00046849,30]
[314506338,1708378253999,-500.0,0.00046849,30]
[314506339,1708378254008,-500.0,0.00046849,30]
[314506340,1708378254018,-752.2,0.00046849,30]
[314506341,1708378254027,-730.88,0.00046849,30]
[314506342,1708378254037,-500.0,0.00046849,30]
[314506343,1708378254047,-539.17,0.00046849,30]
[314506344,1708378254056,-500.0,0.00046849,30]
[314506345,1708378254065,-500.0,0.00046849,30]
[314506346,1708378254075,-622.72,0.00046849,30]
[314506347,1708378254084,-500.0,0.00046849,30]
[314506348,1708378254094,-500.0,0.00046849,30]
[314506349,1708378254103,-500.0,0.00046849,30]
[314506350,1708378254113,-500.0,0.00046849,30]
[314506351,1708378254123,-500.0,0.00046849,30]
[314506352,1708378254133,-500.0,0.00046849,30]
[314506353,1708378254143,-818.54,0.00046849,30]
[314506354,1708378254152,-4432.09,0.00046849,30]
[314506355,1708378254162,-500.0,0.00046849,30]
[314506356,1708378254171,-620.54,0.00046849,30]
[314506357,1708378254181,-500.0,0.00046849,30]
[314506358,1708378254190,-603.0,0.00046849,30]
[314506359,1708378254200,-500.0,0.00046849,30]
[314506360,1708378254209,-794.43,0.00046849,30]
[314506361,1708378254219,-500.0,0.00046849,30]
[314506362,1708378254228,-500.0,0.00046849,30]
[314506363,1708378254237,-500.0,0.00046849,30]
[314506364,1708378254246,-686.83,0.00046849,30]
[314506365,1708378254255,-500.0,0.00046849,30]
[314506366,1708378254265,-200.0,0.00046857,30]
[314506367,1708378254274,-153.92923272,0.00046911,30]
[314506368,1708378254284,-153.92923272,0.00046953,30]
[314506369,1708378254293,-200.0,0.00046987,73]
[314506370,1708378254303,-200.0,0.00046987,72]
[314506371,1708378254312,-236.75556339,0.00047014,13]
[314506372,1708378254321,-156.62887964,0.0004703,30]
[314506373,1708378254331,-153.92923272,0.0004703,30]
[314506374,1708378254340,-150.0,0.00047096,2]
[314506375,1708378254350,-150.06910513,0.00047106,30]
[314506376,1708378254359,-500.0,0.00047123,30]
[314506377,1708378254368,-500.0,0.00047123,30]
[314506378,1708378254378,-500.0,0.00047123,30]
[314506379,1708378254387,-478.60511042,0.00047123,30]
[314506380,1708378254396,-500.0,0.00047123,30]
[314506381,1708378254406,-500.0,0.00047123,30]
[314506382,1708378254415,-541.71,0.00047123,30]
[314506383,1708378254425,-500.0,0.00047123,30]
[314506384,1708378254434,-500.0,0.00047123,30]
[314506385,1708378254444,-500.0,0.00047123,30]
[314506386,1708378254453,-500.0,0.00047123,30]
[314506387,1708378254462,-500.0,0.00047123,30]
[314506388,1708378254471,-500.0,0.00047123,30]
[314506389,1708378254480,-500.0,0.00047123,30]
[314506390,1708378254490,-500.0,0.00047123,30]
[314506391,1708378254499,-500.0,0.00047123,30]
[314506392,1708378254508,-500.0,0.00047123,30]
[314506393,1708378254518,-500.0,0.00047123,30]
[314506394,1708378254582,-500.0,0.00047123,30]
[314506395,1708378254594,-500.0,0.00047123,30]
[314506396,1708378254604,-500.0,0.00047123,30]
[314506397,1708378254613,-515.68,0.00047123,30]
[314506398,1708378254622,-500.0,0.00047123,30]
[314506399,1708378254631,-500.0,0.00047123,30]
[314506400,1708378254640,-150.24493853,0.00047123,30]
[314506401,1708378254649,-500.0,0.00047123,30]
[314506402,1708378254658,-570.23743868,0.00047123,30]
[314506403,1708378254668,-500.0,0.00047123,30]
[314506404,1708378254677,-500.0,0.00047123,30]
[314506405,1708378254687,-500.0,0.00047123,7]
[314506406,1708378254696,-500.0,0.00047123,30]
[314506407,1708378254705,-500.0,0.00047123,30]
[314506408,1708378254714,-500.0,0.00047123,30]
[314506409,1708378254723,-500.0,0.00047123,30]
[314506410,1708378254732,-500.0,0.00047123,30]
[314506411,1708378254742,-500.0,0.00047123,30]
[314506412,1708378254752,-500.0,0.00047123,30]
[314506413,1708378254762,-355.2358985,0.00047123,30]
[314506414,1708378254772,-500.0,0.00047123,30]
[314506415,1708378254781,-500.0,0.00047123,30]
[314506416,1708378254790,-553.77547032,0.00047123,30]
[314506417,1708378254800,-500.0,0.00047123,30]
[314506418,1708378254809,-500.0,0.00047123,30]
[314506419,1708378254818,-500.0,0.00047123,30]
[314506420,1708378254829,-500.0,0.00047123,30]
[314506421,1708378254839,-500.0,0.00047123,30]
[314506422,1708378254850,-500.0,0.00047123,30]
[314506423,1708378254861,-500.0,0.00047123,30]
[314506424,1708378254870,-500.0,0.00047123,30]
[314506425,1708378254878,-500.0,0.00047123,30]
[314506426,1708378254887,-500.0,0.00047123,30]
[314506427,1708378254897,-500.0,0.00047123,30]
[314506428,1708378254907,-500.0,0.00047123,30]
[314506429,1708378254917,-500.0,0.00047123,30]
[314506430,1708378254926,-500.0,0.00047123,30]
[314506431,1708378254935,-549.41,0.00047123,30]
[314506432,1708378254944,-500.0,0.00047123,2]
[314506433,1708378254953,-500.0,0.00047123,30]
[314506434,1708378254962,-500.0,0.00047123,30]
[314506435,1708378254971,-500.0,0.00047123,30]
[314506436,1708378254980,-500.0,0.00047123,30]
[314506437,1708378254989,-500.0,0.00047123,30]
[314506438,1708378254998,-500.0,0.00047123,30]
[314506439,1708378255007,-489.39,0.00047123,30]
[314506440,1708378255016,-500.0,0.00047123,30]
[314506441,1708378255026,-500.0,0.00047123,30]
[314506442,1708378255035,-500.0,0.00047123,30]
[314506443,1708378255044,-500.0,0.00047123,30]
[314506444,1708378255053,-500.0,0.00047123,30]
[314506445,1708378255062,-500.0,0.00047123,30]
[314506446,1708378255071,-500.0,0.00047123,30]
[314506447,1708378255080,-500.0,0.00047123,30]
[314506448,1708378255089,-500.0,0.00047123,30]
[314506449,1708378255099,-500.0,0.00047123,30]
[314506450,1708378255109,-500.0,0.00047123,30]
[314506451,1708378255118,-500.0,0.00047123,30]
[314506452,1708378255128,-500.0,0.00047123,30]
[314506453,1708378255138,-613.78,0.00047123,30]
[314506454,1708378255147,-500.0,0.00047123,30]
[314506455,1708378255156,-500.0,0.00047123,30]
[314506456,1708378255166,-558.50100162,0.00047123,30]
[314506457,1708378255175,-500.0,0.00047123,30]
[314506458,1708378255185,-214.23057135,0.00047123,30]
[314506459,1708378255194,-500.0,0.00047123,30]
[314506460,1708378255204,-500.0,0.00047123,30]
[314506461,1708378255214,-500.0,0.00047123,30]
[314506462,1708378255224,-500.0,0.00047123,30]
[314506463,1708378255233,-500.0,0.00047123,30]
[314506464,1708378255242,-500.0,0.00047123,30]
[314506465,1708378255252,-500.0,0.00047123,30]
[314506466,1708378255261,-500.0,0.00047123,30]
[314506467,1708378255270,-500.0,0.00047123,30]
[314506468,1708378255280,-500.0,0.00047123,30]
[314506469,1708378255289,-500.0,0.00047123,30]
[314506470,1708378255299,-500.0,0.00047123,30]
[314506471,1708378255308,-500.0,0.00047123,30]
[314506472,1708378255317,-500.0,0.00047123,30]
[314506473,1708378255326,-500.0,0.00047123,30]
[314506474,1708378255336,-500.0,0.00047123,30]
[314506475,1708378255346,-500.0,0.00047123,30]
[314506476,1708378255355,-500.0,0.00047123,30]
[314506477,1708378255365,-500.0,0.00047123,30]
[314506478,1708378255374,-500.0,0.00047123,30]
[314506479,1708378255384,-500.0,0.00047123,30]
[314506480,1708378255393,-500.0,0.00047123,30]
[314506481,1708378255402,-500.0,0.00047123,30]
[314506482,1708378255411,-500.0,0.00047123,30]
[314506483,1708378255424,-500.0,0.00047123,30]
[314506484,1708378255435,-500.0,0.00047123,30]
[314506485,1708378255444,-500.0,0.00047123,30]
[314506486,1708378255454,-500.0,0.00047123,30]
[314506487,1708378255463,-500.0,0.00047123,30]
[314506488,1708378255472,-500.0,0.00047123,30]
[314506489,1708378255482,-500.0,0.00047123,30]
[314506490,1708378255490,-500.0,0.00047123,30]
[314506491,1708378255499,-639.04171928,0.00047123,30]
[314506492,1708378255509,-500.0,0.00047123,30]
[314506493,1708378255518,-500.0,0.00047123,30]
[314506494,1708378255527,-500.0,0.00047123,30]
[314506495,1708378255537,-500.0,0.00047123,30]
[314506496,1708378255546,-500.0,0.00047123,2]
[314506497,1708378255555,-500.0,0.00047123,30]
[314506498,1708378255564,-500.0,0.00047123,30]
[314506499,1708378255573,-500.0,0.00047123,30]
[314506500,1708378255582,-500.0,0.00047123,30]
[314506501,1708378255590,-500.0,0.00047123,30]
[314506502,1708378255600,-500.0,0.00047123,30]
[314506503,1708378255609,-500.0,0.00047123,30]
[314506504,1708378255618,-500.0,0.00047123,30]
[314506505,1708378255627,-397.78892357,0.00047123,30]
[314506506,1708378255636,-500.0,0.00047123,30]
[314506507,1708378255645,-631.84,0.00047123,30]
[314506508,1708378255654,-500.0,0.00047123,30]
[314506509,1708378255663,-500.0,0.00047123,30]
[314506510,1708378255672,-500.0,0.00047123,30]
[314506511,1708378255681,-500.0,0.00047123,30]
[314506512,1708378255690,-500.0,0.00047123,30]
[314506513,1708378255700,-500.0,0.00047123,30]
[314506514,1708378255709,-500.0,0.00047123,30]
[314506515,1708378255718,-500.0,0.00047123,30]
[314506516,1708378255726,-500.0,0.00047123,30]
[314506517,1708378255735,-500.0,0.00047123,30]
[314506518,1708378255744,-500.0,0.00047123,30]
[314506519,1708378255755,-500.0,0.00047123,30]
[314506520,1708378255767,-500.0,0.00047123,30]
[314506521,1708378255776,-500.0,0.00047123,30]
[314506522,1708378255785,-500.0,0.00047123,30]
[314506523,1708378255795,-500.0,0.00047123,30]
[314506524,1708378255804,-500.0,0.00047123,30]
[314506525,1708378255813,-500.0,0.00047123,30]
[314506526,1708378255823,-500.0,0.00047123,30]
[314506527,1708378255832,-500.0,0.00047123,30]
[314506528,1708378255841,-500.0,0.00047123,30]
[314506529,1708378255850,-500.0,0.00047123,30]
[314506530,1708378255859,-500.0,0.00047123,2]
[314506531,1708378255868,-500.0,0.00047123,30]
[314506532,1708378255877,-500.0,0.00047123,30]
[314506533,1708378255886,-500.0,0.00047123,30]
[314506534,1708378255896,-500.0,0.00047123,30]
[314506535,1708378255905,-500.0,0.00047123,30]
[314506536,1708378255915,-500.0,0.00047123,30]
[314506537,1708378255924,-500.0,0.00047123,30]
[314506538,1708378255934,-500.0,0.00047123,30]
[314506539,1708378255943,-500.0,0.00047123,30]
[314506540,1708378255952,-500.0,0.00047123,30]
[314506541,1708378255961,-500.0,0.00047123,30]
[314506542,1708378255971,-612.02,0.00047123,30]
[314506543,1708378255980,-500.0,0.00047123,30]
[314506544,1708378255990,-500.0,0.00047123,30]
[314506545,1708378255999,-500.0,0.00047123,30]
[314506546,1708378256008,-500.0,0.00047123,30]
[314506547,1708378256018,-500.0,0.00047123,30]
[314506548,1708378256027,-500.0,0.00047123,30]
[314506549,1708378256036,-500.0,0.00047123,30]
[314506550,1708378256045,-500.0,0.00047123,30]
[314506551,1708378256054,-500.0,0.00047123,30]
[314506552,1708378256063,-500.0,0.00047123,30]
[314506553,1708378256072,-500.0,0.00047123,30]
[314506554,1708378256082,-500.0,0.00047123,30]
[314506555,1708378256091,-500.0,0.00047123,30]
[314506556,1708378256101,-500.0,0.00047123,30]
[314506557,1708378256110,-500.0,0.00047123,30]
[314506558,1708378256119,-500.0,0.00047123,30]
[314506559,1708378256129,-500.0,0.00047123,30]
[314506560,1708378256138,-500.0,0.00047123,30]
[314506561,1708378256148,-500.0,0.00047123,30]
[314506562,1708378256158,-500.0,0.00047123,30]
[314506563,1708378256168,-500.0,0.00047123,30]
[314506564,1708378256177,-217.60375001,0.00047123,30]
[314506565,1708378256186,-150.0,0.00047123,30]
[314506566,1708378256195,-500.0,0.00047123,30]
[314506567,1708378256204,-260.97832821,0.00047123,30]
[314506568,1708378256213,-500.0,0.00047123,30]
[314506569,1708378256223,-500.0,0.00047123,30]
[314506570,1708378256232,-500.0,0.00047123,30]
[314506571,1708378256241,-500.0,0.00047123,30]
[314506572,1708378256250,-500.0,0.00047123,30]
[314506573,1708378256260,-500.0,0.00047123,30]
[314506574,1708378256269,-500.0,0.00047123,30]
[314506575,1708378256278,-500.0,0.00047123,30]
[314506576,1708378256287,-411.96,0.00047123,30]